[Event "Early-Titled-Tuesday-Blitz-February-20-2024"]
[Site "Chess.com"]
[Date "2024.02.20"]
[Round "3"]
[White "Rosh1610"]
[Black "ozates"]
[Result "1-0"]
[WhiteElo "2383"]
[BlackElo "2580"]
[TimeControl "180+1"]
[EndTime "8:27:57 PST"]
[Termination "Rosh1610 won by resignation"]

1. e4 {[%clk 0:03:00.9]} 1... c5 {[%clk 0:02:59.7]} 2. Nc3 {[%clk 0:02:58.4]}
2... Nc6 {[%clk 0:03:00.1]} 3. f4 {[%clk 0:02:57.8]} 3... g6 {[%clk 0:02:59.5]}
4. Nf3 {[%clk 0:02:55.8]} 4... Bg7 {[%clk 0:02:56.9]} 5. a4 {[%clk 0:02:56]}
5... e6 {[%clk 0:02:53.8]} 6. e5 {[%clk 0:02:55.3]} 6... d5 {[%clk 0:02:49.4]}
7. Nb5 {[%clk 0:02:54]} 7... Nge7 {[%clk 0:02:48.1]} 8. Nd6+ {[%clk 0:02:53.7]}
8... Kf8 {[%clk 0:02:48.5]} 9. Ng5 {[%clk 0:02:54.6]} 9... f6 {[%clk 0:02:38.1]}
10. Ndf7 {[%clk 0:02:41.6]} 10... Qe8 {[%clk 0:02:37.7]} 11. exf6 {[%clk
0:02:41.7]} 11... Bxf6 {[%clk 0:02:37.2]} 12. Nxh8 {[%clk 0:02:41.4]} 12... Bxg5
{[%clk 0:02:32.2]} 13. fxg5 {[%clk 0:02:36.6]} 13... Kg7 {[%clk 0:02:32.4]} 14.
Bb5 {[%clk 0:02:28.6]} 14... Qxh8 {[%clk 0:02:30.5]} 15. Bxc6 {[%clk 0:02:28.4]}
15... bxc6 {[%clk 0:02:26.9]} 16. O-O {[%clk 0:02:28.3]} 16... Nf5 {[%clk
0:02:22.8]} 17. g4 {[%clk 0:02:13.2]} 17... Nd6 {[%clk 0:02:22.3]} 18. Qf3
{[%clk 0:02:10.5]} 18... Qe8 {[%clk 0:02:14.9]} 19. b3 {[%clk 0:02:02.6]} 19...
Bd7 {[%clk 0:01:53.5]} 20. Bb2+ {[%clk 0:02:00.5]} 20... Kg8 {[%clk 0:01:51.5]}
21. b4 {[%clk 0:01:50.8]} 21... Ne4 {[%clk 0:01:41.6]} 22. d3 {[%clk 0:01:43.4]}
22... Nd2 {[%clk 0:01:36.3]} 23. Qf6 {[%clk 0:01:43]} 23... d4 {[%clk
0:01:36.4]} 24. bxc5 {[%clk 0:01:39.5]} 24... e5 {[%clk 0:01:32.1]} 25. Rf2
{[%clk 0:01:39.1]} 25... Rb8 {[%clk 0:01:28.2]} 26. Rxd2 {[%clk 0:01:28.9]}
26... Rxb2 {[%clk 0:01:27.7]} 27. Rf1 {[%clk 0:01:28.6]} 27... Bxg4 {[%clk
0:01:22.9]} 28. Rdf2 {[%clk 0:01:26.3]} 28... Bf5 {[%clk 0:01:17.5]} 29. Re1
{[%clk 0:01:19.1]} 29... Rb7 {[%clk 0:00:47.8]} 30. Rxe5 {[%clk 0:01:14.7]}
30... Qf7 {[%clk 0:00:37.8]} 31. Rfe2 {[%clk 0:00:59.2]} 31... Qxf6 {[%clk
0:00:21.1]} 32. gxf6 {[%clk 0:01:00.1]} 32... Kf7 {[%clk 0:00:21.4]} 33. Re7+
{[%clk 0:00:58.8]} 33... Rxe7 {[%clk 0:00:22]} 34. Rxe7+ {[%clk 0:00:59.5]}
34... Kxf6 {[%clk 0:00:22.3]} 35. Rxh7 {[%clk 0:01:00.1]} 35... Ke5 {[%clk
0:00:21.5]} 36. Rxa7 {[%clk 0:01:00.2]} 36... Kd5 {[%clk 0:00:22.2]} 37. h4
{[%clk 0:00:55.6]} 37... Kxc5 {[%clk 0:00:22.5]} 38. Ra5+ {[%clk 0:00:54.3]}
38... Kb4 {[%clk 0:00:22.3]} 39. Rxf5 {[%clk 0:00:54.7]} 1-0

[Event "Early-Titled-Tuesday-Blitz-February-20-2024"]
[Site "Chess.com"]
[Date "2024.02.20"]
[Round "3"]
[White "BilicVladimir"]
[Black "Schattman"]
[Result "1-0"]
[WhiteElo "2648"]
[BlackElo "2433"]
[TimeControl "180+1"]
[EndTime "8:27:59 PST"]
[Termination "BilicVladimir won by resignation"]

1. e4 {[%clk 0:03:00.9]} 1... c5 {[%clk 0:02:59.5]} 2. Nf3 {[%clk 0:03:00.3]}
2... d6 {[%clk 0:03:00.1]} 3. Bb5+ {[%clk 0:03:00.1]} 3... Nd7 {[%clk 0:02:59]}
4. O-O {[%clk 0:02:59.4]} 4... a6 {[%clk 0:02:58.7]} 5. Bd3 {[%clk 0:02:59]}
5... Ngf6 {[%clk 0:02:58.6]} 6. c3 {[%clk 0:02:59.2]} 6... b5 {[%clk 0:02:56]}
7. c4 {[%clk 0:02:57.5]} 7... bxc4 {[%clk 0:02:47.2]} 8. Bxc4 {[%clk 0:02:54.6]}
8... e6 {[%clk 0:02:47.7]} 9. d3 {[%clk 0:02:54.2]} 9... Be7 {[%clk 0:02:46.9]}
10. Nc3 {[%clk 0:02:54.2]} 10... O-O {[%clk 0:02:46.1]} 11. Bf4 {[%clk 0:02:53]}
11... h6 {[%clk 0:02:45.2]} 12. h3 {[%clk 0:02:52.6]} 12... Rb8 {[%clk
0:02:40.5]} 13. Qe2 {[%clk 0:02:48.2]} 13... e5 {[%clk 0:02:35.2]} 14. Be3
{[%clk 0:02:44.1]} 14... Nb6 {[%clk 0:02:34.3]} 15. b3 {[%clk 0:02:42.4]} 15...
Be6 {[%clk 0:02:27.8]} 16. Nd2 {[%clk 0:02:37.7]} 16... Nxc4 {[%clk 0:02:22.5]}
17. Nxc4 {[%clk 0:02:34.1]} 17... Nh7 {[%clk 0:02:09.6]} 18. f4 {[%clk
0:02:32.1]} 18... exf4 {[%clk 0:02:03.9]} 19. Bxf4 {[%clk 0:02:32]} 19... d5
{[%clk 0:02:04.5]} 20. exd5 {[%clk 0:02:30.3]} 20... Bd7 {[%clk 0:01:50.6]} 21.
Bxb8 {[%clk 0:02:27.7]} 21... Qxb8 {[%clk 0:01:51.5]} 22. Ne4 {[%clk 0:02:19.9]}
22... Ng5 {[%clk 0:01:49.9]} 23. Nxg5 {[%clk 0:02:14.5]} 23... Bxg5 {[%clk
0:01:48.4]} 24. Rae1 {[%clk 0:02:13]} 24... Re8 {[%clk 0:01:46.1]} 25. Qh5
{[%clk 0:02:09.7]} 25... g6 {[%clk 0:01:40.9]} 26. Rxe8+ {[%clk 0:02:07.4]}
26... Qxe8 {[%clk 0:01:32.2]} 27. Qf3 {[%clk 0:02:07.9]} 27... Qe7 {[%clk
0:01:29.2]} 28. Qf2 {[%clk 0:02:01.9]} 28... Bh4 {[%clk 0:01:24.8]} 29. Qe3
{[%clk 0:01:55.5]} 29... Qd8 {[%clk 0:01:15.6]} 30. Nd6 {[%clk 0:01:45.5]} 30...
Bg5 {[%clk 0:01:06.6]} 31. Qf3 {[%clk 0:01:26.9]} 31... f5 {[%clk 0:01:05.5]}
32. Nc4 {[%clk 0:01:25.2]} 32... Qe7 {[%clk 0:01:00.6]} 33. d6 {[%clk
0:01:21.9]} 33... Qe6 {[%clk 0:00:57.3]} 34. Qf2 {[%clk 0:01:20.8]} 34... Qd5
{[%clk 0:00:54.2]} 35. Qe2 {[%clk 0:01:17.1]} 35... Bf6 {[%clk 0:00:50.6]} 36.
Re1 {[%clk 0:01:12.6]} 36... g5 {[%clk 0:00:49.3]} 37. Ne5 {[%clk 0:01:06.4]}
37... Qd4+ {[%clk 0:00:12.8]} 38. Kh1 {[%clk 0:01:04.6]} 38... Qxd6 {[%clk
0:00:12.2]} 39. Nxd7 {[%clk 0:01:03.3]} 39... Qxd7 {[%clk 0:00:12.6]} 40. Qe6+
{[%clk 0:01:03]} 40... Qxe6 {[%clk 0:00:12.8]} 41. Rxe6 {[%clk 0:01:03.3]} 41...
Kf7 {[%clk 0:00:13.4]} 42. Rxa6 {[%clk 0:01:02.8]} 1-0

[Event "Early-Titled-Tuesday-Blitz-February-20-2024"]
[Site "Chess.com"]
[Date "2024.02.20"]
[Round "3"]
[White "OparinGrigoriy"]
[Black "SirGerhard"]
[Result "1-0"]
[WhiteElo "3008"]
[BlackElo "2757"]
[TimeControl "180+1"]
[EndTime "8:28:00 PST"]
[Termination "OparinGrigoriy won by resignation"]

1. c4 {[%clk 0:03:00.9]} 1... e5 {[%clk 0:02:59.6]} 2. Nc3 {[%clk 0:03:01.1]}
2... Bb4 {[%clk 0:02:59.8]} 3. Qb3 {[%clk 0:03:00.2]} 3... Bxc3 {[%clk
0:02:58.4]} 4. Qxc3 {[%clk 0:03:01.1]} 4... Nc6 {[%clk 0:02:58.6]} 5. e3 {[%clk
0:03:00.9]} 5... Nf6 {[%clk 0:02:58]} 6. b4 {[%clk 0:03:00.8]} 6... d6 {[%clk
0:02:57.9]} 7. Bb2 {[%clk 0:02:57.9]} 7... O-O {[%clk 0:02:58.1]} 8. Nf3 {[%clk
0:02:57.9]} 8... a5 {[%clk 0:02:54.4]} 9. b5 {[%clk 0:02:57.4]} 9... Ne7 {[%clk
0:02:54.4]} 10. Be2 {[%clk 0:02:57.1]} 10... Ng6 {[%clk 0:02:53.3]} 11. d4
{[%clk 0:02:52]} 11... exd4 {[%clk 0:02:45.1]} 12. Qxd4 {[%clk 0:02:45.1]} 12...
b6 {[%clk 0:02:40]} 13. h4 {[%clk 0:02:41.2]} 13... h5 {[%clk 0:02:25.4]} 14.
Bd3 {[%clk 0:02:30.3]} 14... Re8 {[%clk 0:02:20.4]} 15. Bxg6 {[%clk 0:02:29.6]}
15... fxg6 {[%clk 0:02:20.5]} 16. Ng5 {[%clk 0:02:28.4]} 16... Qe7 {[%clk
0:02:08.9]} 17. O-O {[%clk 0:02:23.8]} 17... Bb7 {[%clk 0:02:07.2]} 18. e4
{[%clk 0:02:20.7]} 18... Qe5 {[%clk 0:01:52]} 19. f3 {[%clk 0:02:11.3]} 19...
Qxd4+ {[%clk 0:01:27.5]} 20. Bxd4 {[%clk 0:02:12.2]} 20... Nd7 {[%clk
0:01:27.3]} 21. Rac1 {[%clk 0:01:59.5]} 21... Rac8 {[%clk 0:01:21.8]} 22. Rfd1
{[%clk 0:01:59.4]} 22... Ne5 {[%clk 0:01:17.8]} 23. Bb2 {[%clk 0:01:50.5]} 23...
Nf7 {[%clk 0:01:15.7]} 24. Nh3 {[%clk 0:01:50.1]} 24... c6 {[%clk 0:01:07.5]}
25. Nf4 {[%clk 0:01:44.9]} 25... Kh7 {[%clk 0:01:06.8]} 26. Kf2 {[%clk
0:01:32.2]} 26... Rc7 {[%clk 0:00:55.4]} 27. Ba3 {[%clk 0:01:32]} 27... Rec8
{[%clk 0:00:50.2]} 28. Bxd6 {[%clk 0:01:13.7]} 28... Nxd6 {[%clk 0:00:50.1]} 29.
Rxd6 {[%clk 0:01:14.6]} 29... cxb5 {[%clk 0:00:50.5]} 30. Rxb6 {[%clk
0:01:15.3]} 30... bxc4 {[%clk 0:00:50.8]} 31. Nxg6 {[%clk 0:01:06.2]} 31... Rd8
{[%clk 0:00:39.7]} 32. Rc2 {[%clk 0:00:57.6]} 32... c3 {[%clk 0:00:36.9]} 33.
Nf4 {[%clk 0:00:57.9]} 33... Rd2+ {[%clk 0:00:35.6]} 34. Rxd2 {[%clk 0:00:57.8]}
34... cxd2 {[%clk 0:00:36]} 35. Ke2 {[%clk 0:00:50.9]} 35... Rd7 {[%clk
0:00:27.6]} 36. Kd1 {[%clk 0:00:51.2]} 36... Bc8 {[%clk 0:00:23.6]} 37. Rb2
{[%clk 0:00:49.7]} 37... Kh6 {[%clk 0:00:20.5]} 38. Rxd2 {[%clk 0:00:49.1]}
38... Rb7 {[%clk 0:00:21.2]} 39. Rd6+ {[%clk 0:00:45.3]} 39... Kh7 {[%clk
0:00:20.8]} 40. Rd5 {[%clk 0:00:44.7]} 40... Rb2 {[%clk 0:00:19.2]} 41. Rxh5+
{[%clk 0:00:44.4]} 41... Kg8 {[%clk 0:00:19]} 42. Rxa5 {[%clk 0:00:45.3]} 1-0

[Event "Early-Titled-Tuesday-Blitz-February-20-2024"]
[Site "Chess.com"]
[Date "2024.02.20"]
[Round "3"]
[White "IndianSchoolOfSuffering"]
[Black "Zavgorodniy_Sergiy"]
[Result "1-0"]
[WhiteElo "2427"]
[BlackElo "2608"]
[TimeControl "180+1"]
[EndTime "8:28:02 PST"]
[Termination "IndianSchoolOfSuffering won by resignation"]

1. Nf3 {[%clk 0:03:00.9]} 1... c5 {[%clk 0:02:59.6]} 2. c4 {[%clk 0:02:54.4]}
2... Nc6 {[%clk 0:02:58.9]} 3. g3 {[%clk 0:02:51.7]} 3... g6 {[%clk 0:02:58.8]}
4. Bg2 {[%clk 0:02:51.1]} 4... Bg7 {[%clk 0:02:59.1]} 5. O-O {[%clk 0:02:51.5]}
5... Nf6 {[%clk 0:02:58.2]} 6. Nc3 {[%clk 0:02:51.9]} 6... O-O {[%clk
0:02:57.9]} 7. d4 {[%clk 0:02:51.9]} 7... cxd4 {[%clk 0:02:58.5]} 8. Nxd4 {[%clk
0:02:52.1]} 8... Qb6 {[%clk 0:02:58.9]} 9. Nb3 {[%clk 0:02:50.7]} 9... d6 {[%clk
0:02:57.6]} 10. h3 {[%clk 0:02:43]} 10... Be6 {[%clk 0:02:57.1]} 11. Nd5 {[%clk
0:02:40.3]} 11... Bxd5 {[%clk 0:02:56.3]} 12. cxd5 {[%clk 0:02:39.8]} 12... Ne5
{[%clk 0:02:54.8]} 13. Be3 {[%clk 0:02:39.1]} 13... Qa6 {[%clk 0:02:53.7]} 14.
Bd4 {[%clk 0:02:33.6]} 14... Nc4 {[%clk 0:02:49.7]} 15. Nd2 {[%clk 0:02:22.1]}
15... b5 {[%clk 0:02:42.2]} 16. b3 {[%clk 0:02:11.3]} 16... Nxd2 {[%clk
0:02:32.7]} 17. Qxd2 {[%clk 0:02:10.4]} 17... Rfc8 {[%clk 0:02:33.3]} 18. Rfc1
{[%clk 0:02:09]} 18... Qb7 {[%clk 0:02:28.5]} 19. Rc6 {[%clk 0:01:47.1]} 19...
Rxc6 {[%clk 0:02:24.2]} 20. dxc6 {[%clk 0:01:45.7]} 20... Qc7 {[%clk 0:02:24.9]}
21. Rc1 {[%clk 0:01:42.6]} 21... a5 {[%clk 0:02:21.1]} 22. Qd3 {[%clk
0:01:40.3]} 22... Rb8 {[%clk 0:02:08.7]} 23. Bf3 {[%clk 0:01:13.7]} 23... e5
{[%clk 0:02:04.6]} 24. Bb2 {[%clk 0:01:09.5]} 24... b4 {[%clk 0:01:50.8]} 25.
Bd5 {[%clk 0:01:08]} 25... Bf8 {[%clk 0:01:20.1]} 26. Kg2 {[%clk 0:01:04.9]}
26... Be7 {[%clk 0:01:17.8]} 27. e4 {[%clk 0:01:04.3]} 27... Kg7 {[%clk
0:01:03.3]} 28. Rc2 {[%clk 0:01:03.8]} 28... h5 {[%clk 0:00:58.9]} 29. Bc1
{[%clk 0:01:03.6]} 29... Ne8 {[%clk 0:00:47]} 30. Be3 {[%clk 0:01:01.2]} 30...
Qc8 {[%clk 0:00:42.7]} 31. Qc4 {[%clk 0:00:55.9]} 31... f6 {[%clk 0:00:38.2]}
32. c7 {[%clk 0:00:55.2]} 32... Nxc7 {[%clk 0:00:19.5]} 33. Qxc7 {[%clk
0:00:53.5]} 33... Qf8 {[%clk 0:00:20.1]} 34. Qd7 {[%clk 0:00:49.5]} 34... Rd8
{[%clk 0:00:19.2]} 35. Qe6 {[%clk 0:00:48.4]} 35... g5 {[%clk 0:00:17.8]} 36.
Rc7 {[%clk 0:00:47.5]} 36... Re8 {[%clk 0:00:17.1]} 37. Bc6 {[%clk 0:00:46.6]}
37... Rc8 {[%clk 0:00:16.6]} 38. Rxc8 {[%clk 0:00:43.6]} 1-0

[Event "Early-Titled-Tuesday-Blitz-February-20-2024"]
[Site "Chess.com"]
[Date "2024.02.20"]
[Round "3"]
[White "treadstone_71"]
[Black "zverr1"]
[Result "0-1"]
[WhiteElo "2329"]
[BlackElo "2533"]
[TimeControl "180+1"]
[EndTime "8:28:03 PST"]
[Termination "zverr1 won by resignation"]

1. e4 {[%clk 0:03:00.9]} 1... c5 {[%clk 0:02:59.7]} 2. Nf3 {[%clk 0:03:00.9]}
2... Nc6 {[%clk 0:02:59.4]} 3. d4 {[%clk 0:03:01.2]} 3... cxd4 {[%clk
0:02:59.4]} 4. Nxd4 {[%clk 0:03:02.1]} 4... g6 {[%clk 0:03:00.2]} 5. c4 {[%clk
0:03:01.7]} 5... Nf6 {[%clk 0:03:00.1]} 6. Nc3 {[%clk 0:03:01.1]} 6... Nxd4
{[%clk 0:03:00.2]} 7. Qxd4 {[%clk 0:03:01.1]} 7... d6 {[%clk 0:03:01.1]} 8. Be2
{[%clk 0:02:57.3]} 8... Bg7 {[%clk 0:03:01]} 9. Be3 {[%clk 0:02:57.5]} 9... O-O
{[%clk 0:03:01.3]} 10. Qd2 {[%clk 0:02:57.3]} 10... Be6 {[%clk 0:03:01.7]} 11.
O-O {[%clk 0:02:55.7]} 11... Qa5 {[%clk 0:02:58.2]} 12. Rac1 {[%clk 0:02:50.7]}
12... Rfc8 {[%clk 0:02:57.5]} 13. b3 {[%clk 0:02:47.4]} 13... a6 {[%clk
0:02:57.4]} 14. f3 {[%clk 0:02:10.8]} 14... b5 {[%clk 0:02:55.8]} 15. Nd5 {[%clk
0:02:11.2]} 15... Qxd2 {[%clk 0:02:53.5]} 16. Bxd2 {[%clk 0:02:11.3]} 16... Nxd5
{[%clk 0:02:52.2]} 17. cxd5 {[%clk 0:02:05.5]} 17... Bd4+ {[%clk 0:02:52.1]} 18.
Kh1 {[%clk 0:02:04.5]} 18... Bd7 {[%clk 0:02:52.6]} 19. Rxc8+ {[%clk 0:02:00.7]}
19... Rxc8 {[%clk 0:02:52.2]} 20. Rc1 {[%clk 0:02:00.9]} 20... Rxc1+ {[%clk
0:02:52.4]} 21. Bxc1 {[%clk 0:02:01.8]} 21... f5 {[%clk 0:02:53.1]} 22. h4
{[%clk 0:01:13.8]} 22... Bf2 {[%clk 0:02:34.5]} 23. h5 {[%clk 0:01:11.3]} 23...
gxh5 {[%clk 0:02:21.6]} 24. Kh2 {[%clk 0:01:09.4]} 24... h4 {[%clk 0:02:15.1]}
25. Bg5 {[%clk 0:00:59]} 25... Kf7 {[%clk 0:02:01.6]} 26. Bd3 {[%clk 0:00:56.6]}
26... Bg3+ {[%clk 0:01:33.3]} 27. Kg1 {[%clk 0:00:54.9]} 27... f4 {[%clk
0:01:33.8]} 28. a4 {[%clk 0:00:32.1]} 28... bxa4 {[%clk 0:01:25.1]} 29. bxa4
{[%clk 0:00:33]} 29... a5 {[%clk 0:01:23.1]} 30. e5 {[%clk 0:00:21.8]} 30...
dxe5 {[%clk 0:01:16.6]} 31. Bc2 {[%clk 0:00:20.2]} 31... h5 {[%clk 0:00:55.7]}
32. Kf1 {[%clk 0:00:20.1]} 32... h3 {[%clk 0:00:55.7]} 33. gxh3 {[%clk
0:00:20.1]} 33... Bxh3+ {[%clk 0:00:56.6]} 34. Ke2 {[%clk 0:00:20.7]} 34... Bg2
{[%clk 0:00:46]} 35. Bf5 {[%clk 0:00:18.2]} 35... h4 {[%clk 0:00:45.5]} 36. Be6+
{[%clk 0:00:18.8]} 36... Ke8 {[%clk 0:00:40.4]} 0-1

[Event "Early-Titled-Tuesday-Blitz-February-20-2024"]
[Site "Chess.com"]
[Date "2024.02.20"]
[Round "3"]
[White "BilodeauA"]
[Black "rquery98"]
[Result "1-0"]
[WhiteElo "3022"]
[BlackElo "2761"]
[TimeControl "180+1"]
[EndTime "8:28:04 PST"]
[Termination "BilodeauA won by resignation"]

1. e4 {[%clk 0:03:00.9]} 1... e5 {[%clk 0:02:59.8]} 2. Nf3 {[%clk 0:03:01.2]}
2... Nc6 {[%clk 0:03:00.1]} 3. Bc4 {[%clk 0:03:01.8]} 3... Bc5 {[%clk
0:02:59.6]} 4. d3 {[%clk 0:03:02.1]} 4... Nf6 {[%clk 0:02:59.6]} 5. h3 {[%clk
0:03:02.5]} 5... d6 {[%clk 0:02:56.7]} 6. a3 {[%clk 0:03:02.8]} 6... a5 {[%clk
0:02:54.4]} 7. Be3 {[%clk 0:03:00.6]} 7... Bxe3 {[%clk 0:02:45.8]} 8. fxe3
{[%clk 0:03:01.5]} 8... Be6 {[%clk 0:02:46.1]} 9. Nc3 {[%clk 0:03:01.8]} 9...
O-O {[%clk 0:02:41.3]} 10. Qe2 {[%clk 0:03:01.3]} 10... d5 {[%clk 0:02:26.1]}
11. exd5 {[%clk 0:03:00.2]} 11... Nxd5 {[%clk 0:02:27]} 12. Ne4 {[%clk
0:03:00.6]} 12... h6 {[%clk 0:02:02.3]} 13. O-O {[%clk 0:02:53.7]} 13... Qe7
{[%clk 0:01:51.4]} 14. Ng3 {[%clk 0:02:16.1]} 14... Nb6 {[%clk 0:01:43]} 15.
Bxe6 {[%clk 0:02:11.4]} 15... Qxe6 {[%clk 0:01:43.9]} 16. e4 {[%clk 0:02:04.2]}
16... g6 {[%clk 0:01:29]} 17. Qe3 {[%clk 0:02:04.4]} 17... Kh7 {[%clk
0:01:28.2]} 18. Rf2 {[%clk 0:02:05]} 18... f5 {[%clk 0:01:16.8]} 19. exf5 {[%clk
0:01:58.9]} 19... gxf5 {[%clk 0:01:17.7]} 20. Nh4 {[%clk 0:01:49.5]} 20... Nd5
{[%clk 0:01:04]} 21. Qe1 {[%clk 0:01:32.1]} 21... Nde7 {[%clk 0:00:43]} 22.
Ngxf5 {[%clk 0:01:02.7]} 22... Ng6 {[%clk 0:00:27.1]} 23. Qe4 {[%clk 0:00:59.4]}
23... Kh8 {[%clk 0:00:17.3]} 24. Nd4 {[%clk 0:00:49.3]} 24... Nxd4 {[%clk
0:00:11.9]} 25. Nxg6+ {[%clk 0:00:49.3]} 25... Kg7 {[%clk 0:00:12.6]} 26. Nxf8
{[%clk 0:00:46.1]} 26... Rxf8 {[%clk 0:00:13.5]} 27. Rxf8 {[%clk 0:00:46.3]}
27... Kxf8 {[%clk 0:00:14.4]} 28. Rf1+ {[%clk 0:00:46.5]} 28... Ke7 {[%clk
0:00:15]} 29. c3 {[%clk 0:00:47.1]} 29... Nc6 {[%clk 0:00:15.1]} 30. Qh7+ {[%clk
0:00:46.1]} 30... Kd6 {[%clk 0:00:14.7]} 31. Qg7 {[%clk 0:00:45]} 31... Kc5
{[%clk 0:00:15.2]} 32. Qxc7 {[%clk 0:00:41.2]} 32... Qd5 {[%clk 0:00:14.7]} 33.
b4+ {[%clk 0:00:40.5]} 33... axb4 {[%clk 0:00:14.8]} 34. axb4+ {[%clk 0:00:41]}
34... Kb5 {[%clk 0:00:15]} 35. c4+ {[%clk 0:00:41.5]} 1-0

[Event "Early-Titled-Tuesday-Blitz-February-20-2024"]
[Site "Chess.com"]
[Date "2024.02.20"]
[Round "3"]
[White "Marcin"]
[Black "Sofia_Blokhin"]
[Result "1/2-1/2"]
[WhiteElo "2514"]
[BlackElo "2254"]
[TimeControl "180+1"]
[EndTime "8:28:05 PST"]
[Termination "Game drawn by repetition"]

1. Nf3 {[%clk 0:03:00.9]} 1... f5 {[%clk 0:02:57.5]} 2. b3 {[%clk 0:02:51.2]}
2... Nf6 {[%clk 0:02:56]} 3. Bb2 {[%clk 0:02:51.1]} 3... g6 {[%clk 0:02:56.3]}
4. c4 {[%clk 0:02:46.8]} 4... Bg7 {[%clk 0:02:56.1]} 5. g3 {[%clk 0:02:46]} 5...
O-O {[%clk 0:02:55.8]} 6. Bg2 {[%clk 0:02:46.6]} 6... d6 {[%clk 0:02:55.8]} 7.
d4 {[%clk 0:02:46.6]} 7... Ne4 {[%clk 0:02:46.5]} 8. O-O {[%clk 0:02:37.3]} 8...
b6 {[%clk 0:02:45.3]} 9. Qc2 {[%clk 0:02:34.6]} 9... Bb7 {[%clk 0:02:45]} 10. d5
{[%clk 0:02:35.1]} 10... Nd7 {[%clk 0:02:42.4]} 11. Nd4 {[%clk 0:02:27.5]} 11...
Bxd4 {[%clk 0:02:21.9]} 12. Bxd4 {[%clk 0:02:28.4]} 12... Ndf6 {[%clk
0:02:20.3]} 13. f3 {[%clk 0:02:22.7]} 13... Nc5 {[%clk 0:02:18.6]} 14. Nc3
{[%clk 0:02:22.2]} 14... e5 {[%clk 0:02:14.7]} 15. dxe6 {[%clk 0:02:17.7]} 15...
Nxe6 {[%clk 0:02:14.6]} 16. Bf2 {[%clk 0:02:17.9]} 16... f4 {[%clk 0:02:11.8]}
17. Bh3 {[%clk 0:02:17.4]} 17... Ng5 {[%clk 0:02:09.5]} 18. Bg2 {[%clk
0:02:17.5]} 18... Ne6 {[%clk 0:02:03.2]} 19. e3 {[%clk 0:02:17.1]} 19... Nh5
{[%clk 0:01:31.5]} 20. exf4 {[%clk 0:02:12.8]} 20... Nhxf4 {[%clk 0:01:20.1]}
21. gxf4 {[%clk 0:02:12]} 21... Nxf4 {[%clk 0:01:20.2]} 22. Bg3 {[%clk
0:02:11.5]} 22... Qg5 {[%clk 0:01:14.1]} 23. Ne4 {[%clk 0:02:05.5]} 23... Qf5
{[%clk 0:01:06.3]} 24. Rae1 {[%clk 0:01:58.7]} 24... h5 {[%clk 0:01:04.8]} 25.
h4 {[%clk 0:01:49.4]} 25... g5 {[%clk 0:01:00.2]} 26. Bxf4 {[%clk 0:01:46.1]}
26... gxf4 {[%clk 0:00:39.8]} 27. Re2 {[%clk 0:01:40.5]} 27... Rf7 {[%clk
0:00:36.4]} 28. Ng5 {[%clk 0:01:40.3]} 28... Qc5+ {[%clk 0:00:31.5]} 29. Kh1
{[%clk 0:01:37.5]} 29... Rg7 {[%clk 0:00:31.5]} 30. Rfe1 {[%clk 0:01:29.7]}
30... Rxg5 {[%clk 0:00:26.6]} 31. hxg5 {[%clk 0:01:30.6]} 31... Qxg5 {[%clk
0:00:25]} 32. Re8+ {[%clk 0:01:09.1]} 32... Kf7 {[%clk 0:00:24.5]} 33. Rxa8
{[%clk 0:01:07.8]} 33... Qh4+ {[%clk 0:00:24.3]} 34. Kg1 {[%clk 0:00:50.4]}
34... Qxe1+ {[%clk 0:00:25.2]} 35. Kh2 {[%clk 0:00:50.7]} 35... Qg3+ {[%clk
0:00:23.4]} 36. Kg1 {[%clk 0:00:51.1]} 36... Bxa8 {[%clk 0:00:20.4]} 37. Qf5+
{[%clk 0:00:50.4]} 37... Kg7 {[%clk 0:00:20]} 38. Qxh5 {[%clk 0:00:50.5]} 38...
Qe1+ {[%clk 0:00:18.9]} 39. Kh2 {[%clk 0:00:48.7]} 39... Qg3+ {[%clk 0:00:18.9]}
40. Kh1 {[%clk 0:00:49.2]} 40... Qe1+ {[%clk 0:00:18.7]} 41. Kh2 {[%clk
0:00:48.7]} 41... Qg3+ {[%clk 0:00:18.6]} 42. Kg1 {[%clk 0:00:49.3]} 42... Qe1+
{[%clk 0:00:18.8]} 43. Bf1 {[%clk 0:00:48.3]} 43... Qg3+ {[%clk 0:00:18.2]} 44.
Bg2 {[%clk 0:00:48.7]} 1/2-1/2

[Event "Early-Titled-Tuesday-Blitz-February-20-2024"]
[Site "Chess.com"]
[Date "2024.02.20"]
[Round "3"]
[White "Rurep26"]
[Black "VladimirKramnik"]
[Result "0-1"]
[WhiteElo "2726"]
[BlackElo "2955"]
[TimeControl "180+1"]
[EndTime "8:28:10 PST"]
[Termination "VladimirKramnik won by resignation"]

1. d4 {[%clk 0:03:00.9]} 1... Nf6 {[%clk 0:02:58.9]} 2. Bf4 {[%clk 0:02:59]}
2... c5 {[%clk 0:02:56.6]} 3. e3 {[%clk 0:02:58.9]} 3... g6 {[%clk 0:02:52.6]}
4. Nd2 {[%clk 0:02:55.8]} 4... Bg7 {[%clk 0:02:53]} 5. c3 {[%clk 0:02:54.8]}
5... O-O {[%clk 0:02:52.5]} 6. Ngf3 {[%clk 0:02:53.3]} 6... cxd4 {[%clk
0:02:47.6]} 7. exd4 {[%clk 0:02:51.3]} 7... d6 {[%clk 0:02:48.1]} 8. h3 {[%clk
0:02:50.9]} 8... Nc6 {[%clk 0:02:46.2]} 9. Be2 {[%clk 0:02:50.3]} 9... Qc7
{[%clk 0:02:43.7]} 10. Bh2 {[%clk 0:02:49.1]} 10... e5 {[%clk 0:02:38.8]} 11.
dxe5 {[%clk 0:02:47.8]} 11... dxe5 {[%clk 0:02:38.5]} 12. O-O {[%clk 0:02:43.6]}
12... Nh5 {[%clk 0:02:30]} 13. Bc4 {[%clk 0:02:41]} 13... h6 {[%clk 0:02:15.3]}
14. a4 {[%clk 0:02:36]} 14... Kh7 {[%clk 0:02:10.9]} 15. Re1 {[%clk 0:02:34.1]}
15... f5 {[%clk 0:02:01.9]} 16. Bd5 {[%clk 0:02:25.6]} 16... Nf4 {[%clk
0:01:41.9]} 17. Bxc6 {[%clk 0:02:17.8]} 17... bxc6 {[%clk 0:01:36.4]} 18. Nc4
{[%clk 0:02:16.5]} 18... Rd8 {[%clk 0:01:30.5]} 19. Qc2 {[%clk 0:02:11.4]} 19...
Nd3 {[%clk 0:01:23.3]} 20. Re3 {[%clk 0:02:07]} 20... f4 {[%clk 0:01:16.4]} 21.
Rxd3 {[%clk 0:01:45.2]} 21... Bf5 {[%clk 0:01:16.6]} 22. Ne1 {[%clk 0:01:45.8]}
22... Rxd3 {[%clk 0:01:07.8]} 23. Nxd3 {[%clk 0:01:46.7]} 23... Rd8 {[%clk
0:01:07.3]} 24. Rd1 {[%clk 0:01:40.5]} 24... Qd7 {[%clk 0:01:00.1]} 25. Rd2
{[%clk 0:01:19]} 25... Bxd3 {[%clk 0:00:55.3]} 26. Qd1 {[%clk 0:01:19.6]} 26...
Qf5 {[%clk 0:00:52.5]} 27. Na5 {[%clk 0:00:54.3]} 27... Be2 {[%clk 0:00:48.2]}
28. Rxd8 {[%clk 0:00:19.8]} 28... Bxd1 {[%clk 0:00:47.9]} 29. Rxd1 {[%clk
0:00:20.7]} 29... Qc2 {[%clk 0:00:47.7]} 30. Rf1 {[%clk 0:00:17.4]} 30... Qxa4
{[%clk 0:00:46.6]} 31. b4 {[%clk 0:00:16.2]} 31... g5 {[%clk 0:00:44.7]} 32. Kh1
{[%clk 0:00:14.5]} 32... e4 {[%clk 0:00:43.8]} 33. g3 {[%clk 0:00:13]} 33... e3
{[%clk 0:00:43.1]} 34. fxe3 {[%clk 0:00:11.3]} 34... fxe3 {[%clk 0:00:42.6]} 35.
Bg1 {[%clk 0:00:12.2]} 35... e2 {[%clk 0:00:41.9]} 36. Re1 {[%clk 0:00:12.7]}
36... Qd1 {[%clk 0:00:42]} 37. Bf2 {[%clk 0:00:13]} 37... Bxc3 {[%clk
0:00:42.1]} 0-1